[Event "FIDE Grand Swiss 2023"]
[Site "Villa Marina, Douglas, Isle of Man, Isle Of Man"]
[Date "2023.10.26"]
[Round "2.26"]
[White "Van Foreest, Jorden"]
[Black "Ter-Sahakyan, Samvel"]
[Result "0-1"]
[TimeControl "40/90 + 30 + 30s/move"]
[WhiteFideId "1039784"]
[BlackFideId "13302531"]
[WhiteElo "2707"]
[BlackElo "2618"]

1. d4 {[%clk 01:40:56]} {[%emt 00:00:03]} d5 {[%clk 01:39:47]} {[%emt
00:01:13]} 2. Nf3 {[%clk 01:41:16]} {[%emt 00:00:10]} Nf6 {[%clk 01:39:56]}
{[%emt 00:00:22]} 3. a3 {[%clk 01:41:38]} {[%emt 00:00:08]} Bf5 {[%clk
01:33:17]} {[%emt 00:07:08]} 4. c4 {[%clk 01:41:42]} {[%emt 00:00:25]} dxc4
{[%clk 01:23:20]} {[%emt 00:10:28]} 5. e3 {[%clk 01:41:00]} {[%emt 00:01:11]}
e6 {[%clk 01:22:04]} {[%emt 00:01:46]} 6. Bxc4 {[%clk 01:40:42]} {[%emt
00:00:48]} Nbd7 {[%clk 01:21:57]} {[%emt 00:00:38]} 7. Nc3 {[%clk 01:39:10]}
{[%emt 00:02:01]} Bd6 {[%clk 01:20:56]} {[%emt 00:01:31]} 8. O-O {[%clk
01:31:15]} {[%emt 00:08:25]} O-O {[%clk 01:20:06]} {[%emt 00:01:21]} 9. Re1
{[%clk 01:30:41]} {[%emt 00:01:02]} Ne4 {[%clk 01:09:42]} {[%emt 00:10:55]} 10.
Ba2 {[%clk 01:22:29]} {[%emt 00:08:43]} Qe7 {[%clk 00:54:12]} {[%emt 00:15:59]}
11. g3 {[%clk 01:03:57]} {[%emt 00:19:02]} c5 {[%clk 00:47:38]} {[%emt
00:07:05]} 12. Nh4 {[%clk 01:03:21]} {[%emt 00:01:06]} Nxc3 {[%clk 00:47:19]}
{[%emt 00:00:50]} 13. bxc3 {[%clk 01:02:05]} {[%emt 00:01:45]} Be4 {[%clk
00:46:07]} {[%emt 00:01:41]} 14. f3 {[%clk 01:02:05]} {[%emt 00:00:29]} Bc6
{[%clk 00:46:17]} {[%emt 00:00:21]} 15. e4 {[%clk 01:00:39]} {[%emt 00:01:56]}
cxd4 {[%clk 00:43:39]} {[%emt 00:03:08]} 16. cxd4 {[%clk 01:00:52]} {[%emt
00:00:16]} Nb6 {[%clk 00:43:50]} {[%emt 00:00:19]} 17. d5 {[%clk 00:57:31]}
{[%emt 00:03:51]} Rfd8 {[%clk 00:31:20]} {[%emt 00:13:00]} 18. Kg2 {[%clk
00:36:29]} {[%emt 00:21:33]} Be5 {[%clk 00:25:25]} {[%emt 00:06:25]} 19. Rb1
{[%clk 00:19:40]} {[%emt 00:17:18]} exd5 {[%clk 00:25:12]} {[%emt 00:00:43]} 20.
exd5 {[%clk 00:18:05]} {[%emt 00:02:05]} Nxd5 {[%clk 00:24:13]} {[%emt
00:01:28]} 21. Qe2 {[%clk 00:18:31]} {[%emt 00:00:05]} Bf6 {[%clk 00:22:26]}
{[%emt 00:02:17]} 22. Qf2 {[%clk 00:09:41]} {[%emt 00:09:19]} Qd7 {[%clk
00:21:28]} {[%emt 00:01:28]} 23. Bb2 {[%clk 00:10:08]} {[%emt 00:00:04]} Bxh4
{[%clk 00:17:22]} {[%emt 00:04:36]} 24. gxh4 {[%clk 00:09:37]} {[%emt
00:01:00]} Nf4+ {[%clk 00:12:26]} {[%emt 00:05:26]} 25. Kh1 {[%clk 00:10:01]}
{[%emt 00:00:06]} Qg4 {[%clk 00:10:21]} {[%emt 00:02:35]} 26. Re3 {[%clk
00:08:37]} {[%emt 00:01:53]} Rd2 {[%clk 00:08:10]} {[%emt 00:02:41]} 27. Qg3
{[%clk 00:08:23]} {[%emt 00:00:44]} Qxg3 {[%clk 00:08:09]} {[%emt 00:00:31]} 28.
hxg3 {[%clk 00:08:50]} {[%emt 00:00:03]} Nd3 {[%clk 00:08:22]} {[%emt
00:00:18]} 0-1

[Event "FIDE Grand Swiss 2023"]
[Site "Villa Marina, Douglas, Isle of Man, Isle Of Man"]
[Date "2023.10.26"]
[Round "2.27"]
[White "Henriquez Villagra, Cristobal"]
[Black "Deac, Bogdan-Daniel"]
[Result "0-1"]
[TimeControl "40/90 + 30 + 30s/move"]
[WhiteFideId "3409350"]
[BlackFideId "1226380"]
[WhiteElo "2630"]
[BlackElo "2701"]

1. Nf3 {[%clk 01:40:55]} {[%emt 00:00:03]} d5 {[%clk 01:40:32]} {[%emt
00:00:29]} 2. g3 {[%clk 01:41:19]} {[%emt 00:00:07]} c5 {[%clk 01:34:12]}
{[%emt 00:06:50]} 3. Bg2 {[%clk 01:35:09]} {[%emt 00:06:40]} Nc6 {[%clk
01:33:37]} {[%emt 00:01:06]} 4. O-O {[%clk 01:34:53]} {[%emt 00:00:45]} Nf6
{[%clk 01:23:57]} {[%emt 00:10:10]} 5. d3 {[%clk 01:28:30]} {[%emt 00:06:53]}
g6 {[%clk 01:21:44]} {[%emt 00:02:44]} 6. c4 {[%clk 01:16:00]} {[%emt
00:13:00]} Bg7 {[%clk 01:11:36]} {[%emt 00:10:38]} 7. Nc3 {[%clk 01:14:26]}
{[%emt 00:02:04]} dxc4 {[%clk 01:05:49]} {[%emt 00:06:18]} 8. dxc4 {[%clk
01:14:34]} {[%emt 00:00:21]} Be6 {[%clk 01:06:11]} {[%emt 00:00:08]} 9. Qa4
{[%clk 01:06:46]} {[%emt 00:08:18]} O-O {[%clk 01:05:30]} {[%emt 00:01:11]} 10.
Ng5 {[%clk 00:55:02]} {[%emt 00:12:14]} Bd7 {[%clk 01:02:21]} {[%emt 00:03:40]}
11. Qb5 {[%clk 00:44:36]} {[%emt 00:10:56]} h6 {[%clk 00:45:01]} {[%emt
00:17:50]} 12. Nge4 {[%clk 00:44:07]} {[%emt 00:00:59]} Nxe4 {[%clk 00:44:37]}
{[%emt 00:00:55]} 13. Bxe4 {[%clk 00:43:45]} {[%emt 00:00:51]} Na5 {[%clk
00:35:12]} {[%emt 00:09:55]} 14. Qxc5 {[%clk 00:41:49]} {[%emt 00:02:26]} b6
{[%clk 00:35:13]} {[%emt 00:00:29]} 15. Qd5 {[%clk 00:33:44]} {[%emt 00:08:35]}
Rc8 {[%clk 00:33:25]} {[%emt 00:02:17]} 16. Rd1 {[%clk 00:25:30]} {[%emt
00:08:44]} Be6 {[%clk 00:23:24]} {[%emt 00:10:32]} 17. Qb5 {[%clk 00:25:15]}
{[%emt 00:00:45]} Qe8 {[%clk 00:20:12]} {[%emt 00:03:42]} 18. Qa6 {[%clk
00:21:19]} {[%emt 00:04:26]} Rxc4 {[%clk 00:12:16]} {[%emt 00:08:27]} 19. Bd5
{[%clk 00:21:01]} {[%emt 00:00:47]} Bxd5 {[%clk 00:11:19]} {[%emt 00:01:27]} 20.
Nxd5 {[%clk 00:21:05]} {[%emt 00:00:26]} e6 {[%clk 00:08:06]} {[%emt 00:03:44]}
21. Ne3 {[%clk 00:21:19]} {[%emt 00:00:16]} Ra4 {[%clk 00:07:08]} {[%emt
00:01:28]} 22. Qd3 {[%clk 00:12:46]} {[%emt 00:09:03]} Qc6 {[%clk 00:07:30]}
{[%emt 00:00:08]} 23. Qb1 {[%clk 00:08:21]} {[%emt 00:04:55]} Qb5 {[%clk
00:02:32]} {[%emt 00:05:28]} 24. Qd3 {[%clk 00:05:11]} {[%emt 00:03:40]} Qc6
{[%clk 00:02:14]} {[%emt 00:00:48]} 25. Qb1 {[%clk 00:05:14]} {[%emt 00:00:27]}
Rc8 {[%clk 00:02:23]} {[%emt 00:00:21]} 26. Bd2 {[%clk 00:03:49]} {[%emt
00:01:55]} Qb5 {[%clk 00:01:02]} {[%emt 00:01:50]} 27. Bxa5 {[%clk 00:03:54]}
{[%emt 00:00:26]} bxa5 {[%clk 00:00:43]} {[%emt 00:00:49]} 28. Rd2 {[%clk
00:03:47]} {[%emt 00:00:37]} Rb4 {[%clk 00:00:46]} {[%emt 00:00:27]} 29. a4
{[%clk 00:01:00]} {[%emt 00:03:16]} Rxa4 {[%clk 00:01:01]} {[%emt 00:00:15]} 30.
Rxa4 {[%clk 00:01:26]} {[%emt 00:00:04]} Qxa4 {[%clk 00:01:27]} {[%emt
00:00:04]} 31. b3 {[%clk 00:01:33]} {[%emt 00:00:23]} Qb4 {[%clk 00:00:40]}
{[%emt 00:01:16]} 32. Qd1 {[%clk 00:01:55]} {[%emt 00:00:08]} h5 {[%clk
00:00:32]} {[%emt 00:00:39]} 33. Rd8+ {[%clk 00:01:48]} {[%emt 00:00:37]} Rxd8
{[%clk 00:00:53]} {[%emt 00:00:09]} 34. Qxd8+ {[%clk 00:02:15]} {[%emt
00:00:02]} Bf8 {[%clk 00:00:39]} {[%emt 00:00:45]} 35. Qd1 {[%clk 00:02:38]}
{[%emt 00:00:06]} Bc5 {[%clk 00:00:33]} {[%emt 00:00:37]} 36. Ng2 {[%clk
00:01:14]} {[%emt 00:01:54]} Kf8 {[%clk 00:00:32]} {[%emt 00:00:31]} 37. e3
{[%clk 00:01:36]} {[%emt 00:00:08]} Ke7 {[%clk 00:00:34]} {[%emt 00:00:27]} 38.
Nf4 {[%clk 00:01:18]} {[%emt 00:00:48]} Qc3 {[%clk 00:00:37]} {[%emt 00:00:26]}
39. h4 {[%clk 00:00:54]} {[%emt 00:00:54]} Bb4 {[%clk 00:00:41]} {[%emt
00:00:27]} 40. Kf1 {[%clk 00:00:51]} {[%emt 00:00:34]} Qb2 {[%clk 00:00:34]}
{[%emt 00:00:37]} 41. Nd3 {[%clk 00:39:24]} {[%emt 00:11:56]} Qc3 {[%clk
00:50:09]} {[%emt 00:00:55]} 42. Ke2 {[%clk 00:35:11]} {[%emt 00:04:43]} a6
{[%clk 00:47:40]} {[%emt 00:02:59]} 43. Kf3 {[%clk 00:32:30]} {[%emt 00:03:11]}
Bd6 {[%clk 00:44:18]} {[%emt 00:03:52]} 44. Ke2 {[%clk 00:29:10]} {[%emt
00:03:49]} e5 {[%clk 00:44:20]} {[%emt 00:00:28]} 45. Ne1 {[%clk 00:17:35]}
{[%emt 00:12:05]} a4 {[%clk 00:43:36]} {[%emt 00:01:14]} 46. bxa4 {[%clk
00:17:25]} {[%emt 00:00:41]} Qc4+ {[%clk 00:43:58]} {[%emt 00:00:08]} 47. Qd3
{[%clk 00:16:58]} {[%emt 00:00:56]} Qxa4 {[%clk 00:44:21]} {[%emt 00:00:07]} 48.
e4 {[%clk 00:15:58]} {[%emt 00:01:30]} Bc5 {[%clk 00:40:54]} {[%emt 00:03:56]}
49. f4 {[%clk 00:12:33]} {[%emt 00:03:56]} exf4 {[%clk 00:34:35]} {[%emt
00:06:50]} 50. gxf4 {[%clk 00:12:57]} {[%emt 00:00:06]} Qd4 {[%clk 00:33:31]}
{[%emt 00:01:34]} 51. Qxa6 {[%clk 00:11:18]} {[%emt 00:02:10]} Qxe4+ {[%clk
00:33:50]} {[%emt 00:00:11]} 52. Kd1 {[%clk 00:11:45]} {[%emt 00:00:03]} Qxf4
{[%clk 00:33:51]} {[%emt 00:00:30]} 53. Qb7+ {[%clk 00:12:12]} {[%emt
00:00:02]} Kf6 {[%clk 00:34:13]} {[%emt 00:00:07]} 54. Nf3 {[%clk 00:12:32]}
{[%emt 00:00:11]} Kg7 {[%clk 00:18:05]} {[%emt 00:16:38]} 55. Ng5 {[%clk
00:08:17]} {[%emt 00:04:44]} Qa4+ {[%clk 00:16:35]} {[%emt 00:02:00]} 56. Ke2
{[%clk 00:08:37]} {[%emt 00:00:10]} Qc2+ {[%clk 00:16:44]} {[%emt 00:00:21]} 57.
Ke1 {[%clk 00:08:59]} {[%emt 00:00:09]} Qf2+ {[%clk 00:16:09]} {[%emt
00:01:04]} 58. Kd1 {[%clk 00:09:26]} {[%emt 00:00:04]} Be3 {[%clk 00:16:03]}
{[%emt 00:00:34]} 59. Nf3 {[%clk 00:09:44]} {[%emt 00:00:14]} Qf1+ {[%clk
00:13:59]} {[%emt 00:02:34]} 60. Kc2 {[%clk 00:10:10]} {[%emt 00:00:04]} Qe2+
{[%clk 00:14:01]} {[%emt 00:00:28]} 61. Kc3 {[%clk 00:10:34]} {[%emt 00:00:06]}
Bc5 {[%clk 00:14:26]} {[%emt 00:00:05]} 0-1

[Event "FIDE Grand Swiss 2023"]
[Site "Villa Marina, Douglas, Isle of Man, Isle Of Man"]
[Date "2023.10.26"]
[Round "2.28"]
[White "Karthikeyan, Murali"]
[Black "Shankland, Sam"]
[Result "0-1"]
[TimeControl "40/90 + 30 + 30s/move"]
[WhiteFideId "5074452"]
[BlackFideId "2004887"]
[WhiteElo "2611"]
[BlackElo "2698"]

1. e4 {[%clk 01:40:57]} {[%emt 00:00:02]} c6 {[%clk 01:40:49]} {[%emt
00:00:11]} 2. Nf3 {[%clk 01:41:17]} {[%emt 00:00:11]} d5 {[%clk 01:41:14]}
{[%emt 00:00:05]} 3. Nc3 {[%clk 01:41:41]} {[%emt 00:00:06]} Bg4 {[%clk
01:41:26]} {[%emt 00:00:18]} 4. h3 {[%clk 01:42:02]} {[%emt 00:00:09]} Bxf3
{[%clk 01:41:50]} {[%emt 00:00:05]} 5. Qxf3 {[%clk 01:42:24]} {[%emt 00:00:08]}
e6 {[%clk 01:42:16]} {[%emt 00:00:04]} 6. Be2 {[%clk 01:41:23]} {[%emt
00:01:31]} Bc5 {[%clk 01:42:33]} {[%emt 00:00:13]} 7. O-O {[%clk 01:41:12]}
{[%emt 00:00:42]} Ne7 {[%clk 01:42:57]} {[%emt 00:00:05]} 8. Rd1 {[%clk
01:40:38]} {[%emt 00:01:03]} d4 {[%clk 01:43:00]} {[%emt 00:00:27]} 9. Nb1
{[%clk 01:36:10]} {[%emt 00:04:58]} Ng6 {[%clk 01:34:34]} {[%emt 00:08:56]} 10.
d3 {[%clk 01:34:46]} {[%emt 00:01:55]} h5 {[%clk 01:30:51]} {[%emt 00:04:13]}
11. Qg3 {[%clk 01:10:50]} {[%emt 00:24:25]} h4 {[%clk 01:28:59]} {[%emt
00:02:22]} 12. Qg4 {[%clk 01:11:13]} {[%emt 00:00:07]} Nd7 {[%clk 01:28:12]}
{[%emt 00:01:17]} 13. f4 {[%clk 01:09:09]} {[%emt 00:02:34]} Nf6 {[%clk
01:27:02]} {[%emt 00:01:40]} 14. Qf3 {[%clk 01:06:34]} {[%emt 00:03:04]} Qc7
{[%clk 01:20:55]} {[%emt 00:06:37]} 15. Rf1 {[%clk 00:42:13]} {[%emt 00:24:50]}
Nh5 {[%clk 01:17:45]} {[%emt 00:03:40]} 16. Qxh5 {[%clk 00:40:15]} {[%emt
00:02:29]} Rxh5 {[%clk 01:18:11]} {[%emt 00:00:04]} 17. Bxh5 {[%clk 00:40:41]}
{[%emt 00:00:03]} Nf8 {[%clk 01:03:56]} {[%emt 00:14:46]} 18. Nd2 {[%clk
00:40:09]} {[%emt 00:01:01]} O-O-O {[%clk 01:03:59]} {[%emt 00:00:27]} 19. e5
{[%clk 00:31:43]} {[%emt 00:08:56]} g6 {[%clk 01:01:30]} {[%emt 00:02:59]} 20.
Bg4 {[%clk 00:30:53]} {[%emt 00:01:19]} Nd7 {[%clk 01:01:23]} {[%emt 00:00:37]}
21. Nf3 {[%clk 00:30:05]} {[%emt 00:01:18]} Be7 {[%clk 01:01:00]} {[%emt
00:00:53]} 22. Bd2 {[%clk 00:27:56]} {[%emt 00:02:39]} Nb6 {[%clk 01:00:40]}
{[%emt 00:00:50]} 23. Rae1 {[%clk 00:25:11]} {[%emt 00:03:14]} Nd5 {[%clk
01:00:02]} {[%emt 00:01:09]} 24. a3 {[%clk 00:20:39]} {[%emt 00:05:03]} Ne3
{[%clk 00:51:53]} {[%emt 00:08:38]} 25. Rxe3 {[%clk 00:14:35]} {[%emt
00:06:34]} dxe3 {[%clk 00:52:18]} {[%emt 00:00:05]} 26. Bxe3 {[%clk 00:15:02]}
{[%emt 00:00:03]} Qa5 {[%clk 00:46:38]} {[%emt 00:06:10]} 27. Kh1 {[%clk
00:11:32]} {[%emt 00:03:59]} Qb5 {[%clk 00:45:30]} {[%emt 00:01:39]} 28. Bc1
{[%clk 00:11:49]} {[%emt 00:00:13]} Qc5 {[%clk 00:45:10]} {[%emt 00:00:50]} 29.
Ne1 {[%clk 00:11:59]} {[%emt 00:00:19]} a5 {[%clk 00:44:36]} {[%emt 00:01:04]}
30. Bd1 {[%clk 00:09:50]} {[%emt 00:02:39]} a4 {[%clk 00:43:19]} {[%emt
00:01:48]} 31. c3 {[%clk 00:08:11]} {[%emt 00:02:09]} Qb5 {[%clk 00:42:55]}
{[%emt 00:00:53]} 32. Bc2 {[%clk 00:08:32]} {[%emt 00:00:10]} g5 {[%clk
00:38:10]} {[%emt 00:05:16]} 33. fxg5 {[%clk 00:08:01]} {[%emt 00:01:01]} Qxe5
{[%clk 00:38:19]} {[%emt 00:00:20]} 34. d4 {[%clk 00:05:08]} {[%emt 00:03:23]}
Qe2 {[%clk 00:36:15]} {[%emt 00:02:34]} 35. Bd3 {[%clk 00:05:12]} {[%emt
00:00:26]} Qd1 {[%clk 00:36:27]} {[%emt 00:00:18]} 36. Be3 {[%clk 00:03:28]}
{[%emt 00:02:14]} Rg8 {[%clk 00:35:29]} {[%emt 00:01:27]} 37. g6 {[%clk
00:00:36]} {[%emt 00:03:22]} Rxg6 {[%clk 00:33:15]} {[%emt 00:02:44]} 38. Bxg6
{[%clk 00:00:44]} {[%emt 00:00:22]} fxg6 {[%clk 00:33:40]} {[%emt 00:00:06]} 39.
Kg1 {[%clk 00:00:40]} {[%emt 00:00:33]} Qb1 {[%clk 00:33:47]} {[%emt 00:00:23]}
0-1

[Event "FIDE Grand Swiss 2023"]
[Site "Villa Marina, Douglas, Isle of Man, Isle Of Man"]
[Date "2023.10.26"]
[Round "2.29"]
[White "Artemiev, Vladislav"]
[Black "Mendonca, Leon Luke"]
[Result "1/2-1/2"]
[TimeControl "40/90 + 30 + 30s/move"]
[WhiteFideId "24101605"]
[BlackFideId "35028561"]
[WhiteElo "2697"]
[BlackElo "2622"]

1. c4 {[%clk 01:40:45]} {[%emt 00:00:14]} c6 {[%clk 01:40:20]} {[%emt
00:00:42]} 2. e4 {[%clk 01:39:24]} {[%emt 00:01:50]} d5 {[%clk 01:40:18]}
{[%emt 00:00:33]} 3. exd5 {[%clk 01:39:23]} {[%emt 00:00:30]} cxd5 {[%clk
01:40:32]} {[%emt 00:00:17]} 4. d4 {[%clk 01:38:30]} {[%emt 00:01:22]} Nf6
{[%clk 01:40:52]} {[%emt 00:00:10]} 5. Nc3 {[%clk 01:37:58]} {[%emt 00:01:02]}
Nc6 {[%clk 01:40:05]} {[%emt 00:01:17]} 6. Nf3 {[%clk 01:36:57]} {[%emt
00:01:31]} Bg4 {[%clk 01:37:31]} {[%emt 00:03:04]} 7. Be3 {[%clk 01:36:26]}
{[%emt 00:01:01]} e6 {[%clk 01:35:10]} {[%emt 00:02:51]} 8. c5 {[%clk
01:35:42]} {[%emt 00:01:14]} Be7 {[%clk 01:25:53]} {[%emt 00:09:48]} 9. Be2
{[%clk 01:18:45]} {[%emt 00:17:27]} O-O {[%clk 01:24:29]} {[%emt 00:01:53]} 10.
O-O {[%clk 01:16:45]} {[%emt 00:02:31]} Ne4 {[%clk 01:06:15]} {[%emt 00:18:44]}
11. Rc1 {[%clk 01:12:06]} {[%emt 00:05:09]} Bf6 {[%clk 01:04:37]} {[%emt
00:02:08]} 12. h3 {[%clk 00:53:45]} {[%emt 00:18:50]} Bxf3 {[%clk 00:51:25]}
{[%emt 00:13:43]} 13. Bxf3 {[%clk 00:52:38]} {[%emt 00:01:36]} Nxc3 {[%clk
00:51:24]} {[%emt 00:00:32]} 14. Rxc3 {[%clk 00:50:05]} {[%emt 00:03:03]} b6
{[%clk 00:40:46]} {[%emt 00:11:08]} 15. Qd2 {[%clk 00:45:54]} {[%emt 00:04:41]}
Rb8 {[%clk 00:40:19]} {[%emt 00:00:57]} 16. Be2 {[%clk 00:28:41]} {[%emt
00:17:43]} e5 {[%clk 00:25:09]} {[%emt 00:15:40]} 17. dxe5 {[%clk 00:19:11]}
{[%emt 00:10:00]} d4 {[%clk 00:25:18]} {[%emt 00:00:21]} 18. exf6 {[%clk
00:18:03]} {[%emt 00:01:38]} dxc3 {[%clk 00:25:43]} {[%emt 00:00:05]} 19. Qxc3
{[%clk 00:18:14]} {[%emt 00:00:19]} Qxf6 {[%clk 00:26:06]} {[%emt 00:00:06]} 20.
Qxf6 {[%clk 00:18:39]} {[%emt 00:00:05]} gxf6 {[%clk 00:26:33]} {[%emt
00:00:03]} 21. cxb6 {[%clk 00:18:23]} {[%emt 00:00:47]} axb6 {[%clk 00:23:51]}
{[%emt 00:03:12]} 22. Rc1 {[%clk 00:13:37]} {[%emt 00:05:15]} Ne7 {[%clk
00:17:17]} {[%emt 00:07:04]} 23. Rc4 {[%clk 00:10:55]} {[%emt 00:03:12]} Rfd8
{[%clk 00:14:19]} {[%emt 00:03:29]} 24. Rg4+ {[%clk 00:08:04]} {[%emt
00:03:20]} Kh8 {[%clk 00:11:40]} {[%emt 00:03:09]} 25. Bd4 {[%clk 00:05:38]}
{[%emt 00:02:57]} Rd6 {[%clk 00:11:42]} {[%emt 00:00:28]} 26. Bc3 {[%clk
00:03:03]} {[%emt 00:03:05]} Nd5 {[%clk 00:10:31]} {[%emt 00:01:40]} 27. Bd2
{[%clk 00:03:25]} {[%emt 00:00:09]} Rc8 {[%clk 00:07:18]} {[%emt 00:03:43]} 28.
Bf3 {[%clk 00:02:55]} {[%emt 00:01:00]} f5 {[%clk 00:02:03]} {[%emt 00:05:46]}
29. Ra4 {[%clk 00:00:40]} {[%emt 00:02:44]} Kg8 {[%clk 00:01:56]} {[%emt
00:00:36]} 30. Bxd5 {[%clk 00:00:56]} {[%emt 00:00:15]} Rxd5 {[%clk 00:02:22]}
{[%emt 00:00:04]} 31. Bc3 {[%clk 00:01:20]} {[%emt 00:00:07]} b5 {[%clk
00:01:27]} {[%emt 00:01:24]} 32. Ra5 {[%clk 00:00:38]} {[%emt 00:01:12]} Rdc5
{[%clk 00:00:59]} {[%emt 00:00:58]} 33. Kh2 {[%clk 00:00:45]} {[%emt 00:00:23]}
h6 {[%clk 00:00:48]} {[%emt 00:00:40]} 34. Kg3 {[%clk 00:00:40]} {[%emt
00:00:35]} Kh7 {[%clk 00:00:46]} {[%emt 00:00:32]} 35. Ra7 {[%clk 00:00:34]}
{[%emt 00:00:37]} Kg6 {[%clk 00:00:49]} {[%emt 00:00:27]} 36. Rb7 {[%clk
00:00:34]} {[%emt 00:00:30]} Rxc3+ {[%clk 00:01:08]} {[%emt 00:00:11]} 37. bxc3
{[%clk 00:01:00]} {[%emt 00:00:05]} Rxc3+ {[%clk 00:01:34]} 38. f3 {[%clk
00:01:23]} {[%emt 00:00:09]} Ra3 {[%clk 00:01:59]} {[%emt 00:00:06]} 39. Rxb5
{[%clk 00:01:49]} {[%emt 00:00:05]} 1/2-1/2

[Event "FIDE Grand Swiss 2023"]
[Site "Villa Marina, Douglas, Isle of Man, Isle Of Man"]
[Date "2023.10.26"]
[Round "2.30"]
[White "Nihal, Sarin"]
[Black "Suleymanli, Aydin"]
[Result "1/2-1/2"]
[TimeControl "40/90 + 30 + 30s/move"]
[WhiteFideId "25092340"]
[BlackFideId "13413937"]
[WhiteElo "2694"]
[BlackElo "2588"]

1. c4 {[%clk 01:40:52]} {[%emt 00:00:08]} Nf6 {[%clk 01:40:50]} {[%emt
00:00:11]} 2. g3 {[%clk 01:40:05]} {[%emt 00:01:16]} e6 {[%clk 01:39:05]}
{[%emt 00:02:15]} 3. Bg2 {[%clk 01:40:28]} {[%emt 00:00:06]} d5 {[%clk
01:39:29]} {[%emt 00:00:08]} 4. Nf3 {[%clk 01:40:53]} {[%emt 00:00:05]} Be7
{[%clk 01:39:53]} {[%emt 00:00:07]} 5. O-O {[%clk 01:41:16]} {[%emt 00:00:05]}
O-O {[%clk 01:40:10]} {[%emt 00:00:15]} 6. d4 {[%clk 01:41:36]} {[%emt
00:00:08]} dxc4 {[%clk 01:40:36]} {[%emt 00:00:05]} 7. Ne5 {[%clk 01:42:00]}
{[%emt 00:00:05]} Nc6 {[%clk 01:40:30]} {[%emt 00:00:37]} 8. Bxc6 {[%clk
01:42:07]} {[%emt 00:00:22]} bxc6 {[%clk 01:40:54]} {[%emt 00:00:07]} 9. Nxc6
{[%clk 01:42:29]} {[%emt 00:00:08]} Qe8 {[%clk 01:41:19]} {[%emt 00:00:05]} 10.
Nxe7+ {[%clk 01:42:52]} {[%emt 00:00:06]} Qxe7 {[%clk 01:41:47]} {[%emt
00:00:02]} 11. Be3 {[%clk 01:43:13]} {[%emt 00:00:10]} Rd8 {[%clk 01:33:22]}
{[%emt 00:08:56]} 12. Qc1 {[%clk 01:36:34]} {[%emt 00:07:06]} e5 {[%clk
01:30:41]} {[%emt 00:03:12]} 13. dxe5 {[%clk 01:33:29]} {[%emt 00:03:35]} Qxe5
{[%clk 01:31:06]} {[%emt 00:00:06]} 14. Nc3 {[%clk 01:31:37]} {[%emt 00:02:21]}
Ne4 {[%clk 01:23:35]} {[%emt 00:08:02]} 15. Qc2 {[%clk 01:19:28]} {[%emt
00:12:39]} Nxc3 {[%clk 00:51:24]} {[%emt 00:32:41]} 16. Qxc3 {[%clk 01:19:49]}
{[%emt 00:00:09]} Qxc3 {[%clk 00:49:36]} {[%emt 00:02:19]} 17. bxc3 {[%clk
01:20:12]} {[%emt 00:00:07]} Bf5 {[%clk 00:49:37]} {[%emt 00:00:29]} 18. f3
{[%clk 01:11:48]} {[%emt 00:08:51]} h5 {[%clk 00:41:18]} {[%emt 00:08:51]} 19.
Rfd1 {[%clk 01:06:39]} {[%emt 00:05:38]} a5 {[%clk 00:35:15]} {[%emt 00:06:35]}
20. Bf4 {[%clk 01:01:57]} {[%emt 00:05:10]} Rab8 {[%clk 00:20:37]} {[%emt
00:15:10]} 21. Rxd8+ {[%clk 00:53:59]} Rxd8 {[%clk 00:20:42]} {[%emt 00:08:53]}
22. Kf2 {[%clk 00:28:05]} {[%emt 00:26:23]} c6 {[%clk 00:20:39]} {[%emt
00:00:33]} 23. Bc7 {[%clk 00:20:45]} {[%emt 00:07:51]} Rd5 {[%clk 00:18:32]}
{[%emt 00:02:37]} 24. Rc1 {[%clk 00:15:53]} {[%emt 00:05:21]} a4 {[%clk
00:17:17]} {[%emt 00:01:46]} 25. a3 {[%clk 00:07:51]} {[%emt 00:08:32]} Rd2
{[%clk 00:16:02]} {[%emt 00:01:44]} 26. Ke3 {[%clk 00:07:04]} {[%emt 00:01:18]}
Rc2 {[%clk 00:15:32]} {[%emt 00:01:01]} 27. Rxc2 {[%clk 00:07:28]} {[%emt
00:00:05]} Bxc2 {[%clk 00:15:59]} {[%emt 00:00:03]} 28. Kd2 {[%emt 00:01:02]}
Bb3 {[%clk 00:16:02]} 29. e4 {[%clk 00:07:45]} {[%emt 00:00:07]} f6 {[%clk
00:15:13]} {[%emt 00:01:19]} 30. f4 {[%clk 00:06:36]} {[%emt 00:01:38]} Kf7
{[%clk 00:15:29]} {[%emt 00:00:15]} 31. h3 {[%clk 00:05:15]} {[%emt 00:01:50]}
g6 {[%clk 00:14:09]} {[%emt 00:01:51]} 32. f5 {[%clk 00:05:28]} {[%emt
00:00:17]} gxf5 {[%clk 00:12:27]} {[%emt 00:02:12]} 33. exf5 {[%clk 00:05:52]}
{[%emt 00:00:06]} Ba2 {[%clk 00:12:44]} {[%emt 00:00:12]} 34. Kc2 {[%clk
00:06:17]} {[%emt 00:00:05]} Bb3+ {[%clk 00:13:09]} {[%emt 00:00:06]} 35. Kc1
{[%clk 00:06:43]} {[%emt 00:00:03]} Ba2 {[%clk 00:13:04]} {[%emt 00:00:35]} 36.
g4 {[%clk 00:07:01]} {[%emt 00:00:13]} hxg4 {[%clk 00:13:30]} {[%emt 00:00:04]}
37. hxg4 {[%clk 00:07:12]} {[%emt 00:00:18]} Bb3 {[%clk 00:12:52]} {[%emt
00:01:08]} 38. Bd8 {[%clk 00:06:19]} {[%emt 00:01:24]} Ba2 {[%clk 00:13:10]}
{[%emt 00:00:12]} 39. Kb2 {[%clk 00:06:46]} {[%emt 00:00:03]} Bb3 {[%clk
00:13:35]} {[%emt 00:00:05]} 40. Kc1 {[%clk 00:07:12]} {[%emt 00:00:03]} Ba2
{[%clk 00:13:57]} {[%emt 00:00:08]} 1/2-1/2